[Event "4NCL 2021-22"]
[Site "England"]
[Date "2022.03.27"]
[Round "6.73"]
[White "Turner, Max N"]
[Black "Zakarian, David"]
[Result "1-0"]
[ECO "E48"]
[WhiteElo "2223"]
[BlackElo "2316"]
[Annotator "NA"]
[PlyCount "75"]
[EventDate "2021.11.27"]
[EventType "team-tourn"]
[EventCountry "ENG"]
[SourceTitle "playchess.com"]
[Source "ChessBase"]
[SourceQuality "1"]
[TimeControl "40/6000+30:3000+30"]

1. d4 {[%emt 0:00:05]} Nf6 {[%emt 0:00:08]} 2. c4 {[%emt 0:00:20]} e6 {[%emt 0:00:33]} 3. Nc3 {[%emt 0:00:24]} Bb4 {[%emt 0:00:07]} 4. e3 {[%emt 0:00:31]} O-O {[%emt 0:00:09]} 5. Bd3 {[%emt 0:00:29]} d5 {[%emt 0:00:40]} 6. Nge2 {[%emt 0:00:42]} dxc4 {[%emt 0:01:30]} 7. Bxc4 {[%emt 0:00:16]} a6 {[%emt 0:00:03]} 8. O-O {[%emt 0:02:34]} Nbd7 {[%emt 0:06:07]} 9. Bb3 {[%emt 0:13:09]} Qe7 {[%emt 0:02:42]} 10. Ng3 {[%emt 0:07:59]} b6 {[%emt 0:05:20]} 11. e4 {[%emt 0:09:03]} Rd8 {[%emt 0:03:47]} 12. a3 {[%emt 0:04:56]} Bxc3 {[%emt 0:00:20]} 13. bxc3 {[%emt 0:00:09]} Bb7 {[%emt 0:01:19]} 14. Qe2 {[%emt 0:04:02]} c5 {[%emt 0:03:34]} 15. Rd1 {[%emt 0:07:33]} Nf8 {[%emt 0:01:05]} 16. f3 {[%emt 0:05:27]} cxd4 {[%emt 0:03:13]} 17. cxd4 {[%emt 0:00:13]} Rac8 {[%emt 0:00:13]} 18. Bb2 {[%emt 0:00:59]} b5 {[%emt 0:07:59]} 19. Rd2 {[%emt 0:06:53]} Ng6 {[%emt 0:01:09]} 20. Rad1 {[%emt 0:01:42]} h5 {[%emt 0:03:08]} 21. d5 {[%emt 0:05:54]} exd5 {[%emt 0:09:06]} 22. e5 {[%emt 0:08:18]} Ne8 {[%emt 0:12:36]} 23. Qe3 {[%emt 0:12:14]} h4 {[%emt 0:00:00]} 24. Nf5 {[%emt 0:00:45]} Qe6 {[%emt 0:03:02]} 25. Qg5 {[%emt 0:01:35]} Nc7 {[%emt 0:01:41]} 26. f4 {[%emt 0:02:56]} Qd7 {[%emt 0:04:05]} 27. Nxg7 {[%emt 0:01:40]} Qe7 {[%emt 0:01:20]} 28. Qh6 {[%emt 0:06:49]} Qc5+ {[%emt 0:05:33]} 29. Rf2 {[%emt 0:01:48]} Qf8 {[%emt 0:08:26]} 30. e6 {[%emt 0:00:26]} f6 {[%emt 0:00:06]} 31. Bxf6 {[%emt 0:02:58]} Ne8 {[%emt 0:05:00]} 32. Bxd8 {[%emt 0:01:37]} Qxg7 {[%emt 0:00:47]} 33. Qxg7+ {[%emt 0:00:25]} Nxg7 {[%emt 0:00:35]} 34. Bf6 {[%emt 0:00:55]} Nf5 {[%emt 0:00:51]} 35. Rc2 {[%emt 0:01:15]} Re8 {[%emt 0:04:31]} 36. Rc7 {[%emt 0:00:30]} Rxe6 {[%emt 0:00:27]} 37. Bg5 {[%emt 0:00:31]} Re3 {[%emt 0:00:22]} 38. Bc2 {[%emt 0:00:26]} 1-0

[Event "4NCL 2021-22"]
[Site "England"]
[Date "2022.03.27"]
[Round "6.74"]
[White "Powierski, Emil"]
[Black "Taylor, Adam A"]
[Result "1-0"]
[ECO "B22"]
[WhiteElo "2318"]
[BlackElo "2277"]
[Annotator "NA"]
[PlyCount "99"]
[EventDate "2021.11.27"]
[EventType "team-tourn"]
[EventCountry "ENG"]
[SourceTitle "playchess.com"]
[Source "ChessBase"]
[SourceQuality "1"]
[TimeControl "40/6000+30:3000+30"]

1. e4 {[%emt 0:00:03]} c5 {[%emt 0:15:37]} 2. c3 {[%emt 0:00:20]} Nf6 {[%emt 0:05:26]} 3. e5 {[%emt 0:00:07]} Nd5 {[%emt 0:00:05]} 4. Nf3 {[%emt 0:00:04]} Nc6 {[%emt 0:17:11]} 5. Bc4 {[%emt 0:00:07]} e6 {[%emt 0:01:31]} 6. O-O {[%emt 0:00:26]} Be7 {[%emt 0:00:26]} 7. d4 {[%emt 0:00:26]} Nb6 {[%emt 0:09:00]} 8. Bb3 {[%emt 0:01:22]} d6 {[%emt 0:02:13]} 9. dxc5 {[%emt 0:03:29]} dxc5 {[%emt 0:00:52]} 10. Qe2 {[%emt 0:00:19]} Bd7 {[%emt 0:05:13]} 11. a4 {[%emt 0:08:55]} Na5 {[%emt 0:02:55]} 12. Bc2 {[%emt 0:00:15]} Qc7 {[%emt 0:00:06]} 13. Nbd2 {[%emt 0:14:07]} Bc6 {[%emt 0:05:29]} 14. b3 {[%emt 0:08:01]} Rc8 {[%emt 0:08:58]} 15. c4 {[%emt 0:12:02]} Nd7 {[%emt 0:07:37]} 16. Bb2 {[%emt 0:12:57]} h6 {[%emt 0:13:16]} 17. Ne4 {[%emt 0:00:00]} O-O {[%emt 0:05:41]} 18. Nd6 {[%emt 0:16:06]} Bxd6 {[%emt 0:07:04]} 19. Qd3 {[%emt 0:00:34]} f5 {[%emt 0:00:01]} 20. exd6 {[%emt 0:00:46]} Qb6 {[%emt 0:00:05]} 21. Ne5 {[%emt 0:09:17]} Nxe5 {[%emt 0:01:10]} 22. Bxe5 {[%emt 0:00:02]} Be4 {[%emt 0:00:42]} 23. Qg3 {[%emt 0:04:09]} Rf7 {[%emt 0:00:03]} 24. Bxe4 {[%emt 0:04:25]} fxe4 {[%emt 0:00:04]} 25. Qg4 {[%emt 0:00:08]} Re8 {[%emt 0:01:29]} 26. Rae1 {[%emt 0:04:50]} Qxb3 {[%emt 0:00:40]} 27. Re3 {[%emt 0:00:22]} Qxc4 {[%emt 0:00:24]} 28. Rg3 {[%emt 0:00:06]} e3 {[%emt 0:00:02]} 29. Qxg7+ {[%emt 0:07:46]} Rxg7 {[%emt 0:00:04]} 30. Rxg7+ {[%emt 0:00:05]} Kf8 {[%emt 0:00:40]} 31. fxe3+ {[%emt 0:00:20]} Qxf1+ {[%emt 0:00:03]} 32. Kxf1 {[%emt 0:00:03]} Nc6 {[%emt 0:01:36]} 33. Bf6 {[%emt 0:00:27]} e5 {[%emt 0:00:41]} 34. Rxb7 {[%emt 0:02:37]} Re6 {[%emt 0:00:18]} 35. Bg7+ {[%emt 0:00:42]} Ke8 {[%emt 0:00:08]} 36. d7+ {[%emt 0:01:26]} Kd8 {[%emt 0:00:45]} 37. Ke1 {[%emt 0:01:09]} Rd6 {[%emt 0:00:37]} 38. Bf8 {[%emt 0:00:16]} Rd5 {[%emt 0:00:47]} 39. Bxh6 {[%emt 0:00:33]} e4 {[%emt 0:00:02]} 40. h4 {[%emt 0:00:44]} Rxd7 {[%emt 0:00:17]} 41. Bg5+ {[%emt 0:09:11]} Ke8 {[%emt 0:00:07]} 42. Rxd7 {[%emt 0:01:32]} Kxd7 {[%emt 0:00:01]} 43. Bf4 {[%emt 0:01:11]} Ke6 {[%emt 0:00:21]} 44. g4 {[%emt 0:00:44]} Ne7 {[%emt 0:02:24]} 45. h5 {[%emt 0:04:48]} Nd5 {[%emt 0:00:32]} 46. Kd2 {[%emt 0:02:10]} Nb6 {[%emt 0:10:51]} 47. g5 {[%emt 0:02:59]} Kf7 {[%emt 0:00:06]} 48. Kc2 {[%emt 0:08:54]} Kg7 {[%emt 0:07:23]} 49. a5 {[%emt 0:04:04]} Nd5 {[%emt 0:00:24]} 50. Kb3 {[%emt 0:00:19]} 1-0

[Event "4NCL 2021-22"]
[Site "England"]
[Date "2022.03.27"]
[Round "6.75"]
[White "Coathup, Roger H"]
[Black "Cole, James"]
[Result "1/2-1/2"]
[ECO "A34"]
[WhiteElo "2154"]
[BlackElo "2040"]
[Annotator "NA"]
[PlyCount "109"]
[EventDate "2021.11.27"]
[EventType "team-tourn"]
[EventCountry "ENG"]
[SourceTitle "playchess.com"]
[Source "ChessBase"]
[SourceQuality "1"]
[TimeControl "40/6000+30:3000+30"]

1. Nf3 {[%emt 0:00:03]} c5 {[%emt 0:00:07]} 2. c4 {[%emt 0:00:21]} Nf6 {[%emt 0:00:10]} 3. Nc3 {[%emt 0:00:16]} d5 {[%emt 0:01:16]} 4. cxd5 {[%emt 0:01:13]} Nxd5 {[%emt 0:00:53]} 5. e3 {[%emt 0:02:08]} g6 {[%emt 0:01:39]} 6. Qb3 {[%emt 0:07:46]} Nb6 {[%emt 0:05:13]} 7. Bb5+ {[%emt 0:05:03]} Bd7 {[%emt 0:05:00]} 8. Ne5 {[%emt 0:01:30]} e6 {[%emt 0:01:27]} 9. Nxd7 {[%emt 0:07:39]} N8xd7 {[%emt 0:04:38]} 10. Ne4 {[%emt 0:01:59]} Be7 {[%emt 0:08:24]} 11. d4 {[%emt 0:16:01]} O-O {[%emt 0:10:03]} 12. O-O {[%emt 0:00:28]} Qc7 {[%emt 0:05:56]} 13. dxc5 {[%emt 0:06:25]} Nxc5 {[%emt 0:00:26]} 14. Nxc5 {[%emt 0:01:11]} Qxc5 {[%emt 0:00:15]} 15. Bd2 {[%emt 0:03:17]} Qd5 {[%emt 0:03:58]} 16. Qxd5 {[%emt 0:05:03]} Nxd5 {[%emt 0:00:06]} 17. Rac1 {[%emt 0:02:14]} a6 {[%emt 0:04:29]} 18. Be2 {[%emt 0:02:46]} Rac8 {[%emt 0:09:13]} 19. Bf3 {[%emt 0:03:29]} Bf6 {[%emt 0:02:22]} 20. b3 {[%emt 0:01:57]} Bb2 {[%emt 0:03:52]} 21. Rcd1 {[%emt 0:07:00]} Rfd8 {[%emt 0:06:17]} 22. Ba5 {[%emt 0:05:18]} b6 {[%emt 0:01:35]} 23. Bxd5 {[%emt 0:01:07]} bxa5 {[%emt 0:00:06]} 24. Bc4 {[%emt 0:05:50]} Kg7 {[%emt 0:10:17]} 25. h4 {[%emt 0:06:26]} h5 {[%emt 0:02:14]} 26. Bxa6 {[%emt 0:02:09]} Rxd1 {[%emt 0:02:30]} 27. Rxd1 {[%emt 0:00:06]} Rc1 {[%emt 0:00:57]} 28. Rxc1 {[%emt 0:00:04]} Bxc1 {[%emt 0:00:06]} 29. Kf1 {[%emt 0:00:12]} f5 {[%emt 0:03:29]} 30. Ke2 {[%emt 0:00:29]} e5 {[%emt 0:00:19]} 31. f3 {[%emt 0:00:30]} Ba3 {[%emt 0:04:17]} 32. Kd3 {[%emt 0:01:19]} Kf6 {[%emt 0:02:07]} 33. Kc4 {[%emt 0:00:24]} Ke6 {[%emt 0:06:19]} 34. Bb7 {[%emt 0:00:35]} f4 {[%emt 0:01:32]} 35. Bd5+ {[%emt 0:04:06]} Kd6 {[%emt 0:02:22]} 36. exf4 {[%emt 0:00:28]} exf4 {[%emt 0:00:04]} 37. Bf7 {[%emt 0:00:09]} Kc6 {[%emt 0:00:42]} 38. Bxg6 {[%emt 0:01:08]} Be7 {[%emt 0:00:17]} 39. Bxh5 {[%emt 0:00:18]} Bxh4 {[%emt 0:00:09]} 40. a3 {[%emt 0:00:56]} Kb6 {[%emt 0:02:03]} 41. Bg6 {[%emt 0:51:04]} Be7 {[%emt 0:51:37]} 42. b4 {[%emt 0:00:09]} axb4 {[%emt 0:00:11]} 43. axb4 {[%emt 0:00:03]} Bd6 {[%emt 0:01:10]} 44. Be4 {[%emt 0:00:22]} Bb8 {[%emt 0:00:51]} 45. Bd3 {[%emt 0:00:55]} Bc7 {[%emt 0:00:00]} 46. Kd5 {[%emt 0:00:00]} Bb8 {[%emt 0:00:00]} 47. Ke6 {[%emt 0:00:00]} Bc7 {[%emt 0:00:00]} 48. Kf5 {[%emt 0:00:00]} Bb8 {[%emt 0:00:00]} 49. Bf1 {[%emt 0:00:00]} Bc7 {[%emt 0:00:00]} 50. Kg4 {[%emt 0:00:00]} Bd6 {[%emt 0:00:00]} 51. b5 {[%emt 0:00:00]} Bc7 {[%emt 0:00:00]} 52. g3 {[%emt 0:00:00]} fxg3 {[%emt 0:00:00]} 53. f4 {[%emt 0:00:00]} g2 {[%emt 0:00:00]} 54. Bxg2 {[%emt 0:00:00]} Kxb5 {[%emt 0:00:00]} 55. f5 {[%emt 0:00:00]} 1/2-1/2

[Event "4NCL 2021-22"]
[Site "England"]
[Date "2022.03.27"]
[Round "6.76"]
[White "Stephens, Graeme"]
[Black "Oswald, Graeme"]
[Result "0-1"]
[ECO "E38"]
[WhiteElo "2000"]
[BlackElo "2141"]
[Annotator "ChessBase"]
[PlyCount "82"]
[EventDate "2021.11.27"]
[EventType "team-tourn"]
[EventCountry "ENG"]
[SourceTitle "playchess.com"]
[Source "ChessBase"]
[SourceQuality "1"]
[TimeControl "40/6000+30:3000+30"]

1. d4 {[%emt 0:00:31]} Nf6 {[%emt 0:00:30]} 2. c4 {[%emt 0:00:30]} e6 {[%emt 0:00:30]} 3. Nc3 {[%emt 0:00:30]} Bb4 {[%emt 0:00:30]} 4. Qc2 {[%emt 0:00:17]} c5 {[%emt 0:01:15]} 5. e3 {[%emt 0:00:51]} b6 {[%emt 0:01:09]} 6. Nf3 {[%emt 0:01:39]} Bb7 {[%emt 0:00:14]} 7. Bd3 {[%emt 0:05:14]} O-O {[%emt 0:00:12]} 8. Bd2 {[%emt 0:00:30]} Re8 {[%emt 0:02:27]} 9. Ne4 {[%emt 0:17:55]} Bxe4 {[%emt 0:01:43]} 10. Bxe4 {[%emt 0:01:03]} Nxe4 {[%emt 0:00:02]} 11. Qxe4 {[%emt 0:00:23]} d5 {[%emt 0:00:20]} 12. cxd5 {[%emt 0:07:45]} exd5 {[%emt 0:00:11]} 13. Qc2 {[%emt 0:02:03]} Nc6 {[%emt 0:02:14]} 14. dxc5 {[%emt 0:03:41]} bxc5 {[%emt 0:00:05]} 15. O-O {[%emt 0:01:11]} Rc8 {[%emt 0:04:59]} 16. Rfd1 {[%emt 0:05:11]} Qf6 {[%emt 0:18:14]} 17. a3 {[%emt 0:13:58]} Bxd2 {[%emt 0:00:26]} 18. Qxd2 {[%emt 0:05:04]} Red8 {[%emt 0:00:18]} 19. Rac1 {[%emt 0:00:25]} Ne5 {[%emt 0:00:15]} 20. Nxe5 {[%emt 0:02:22]} Qxe5 {[%emt 0:00:02]} 21. Qc3 {[%emt 0:01:13]} f6 {[%emt 0:03:35]} 22. Qa5 {[%emt 0:04:27]} Qc7 {[%emt 0:00:11]} 23. Qxc7 {[%emt 0:02:34]} Rxc7 {[%emt 0:00:01]} 24. Rd2 {[%emt 0:00:35]} Kf7 {[%emt 0:00:16]} 25. Kf1 {[%emt 0:03:02]} Ke6 {[%emt 0:00:14]} 26. Rdc2 {[%emt 0:02:24]} Rdc8 {[%emt 0:00:23]} 27. Ke2 {[%emt 0:00:51]} a5 {[%emt 0:00:16]} 28. a4 {[%emt 0:04:30]} Kd6 {[%emt 0:05:13]} 29. b3 {[%emt 0:01:25]} Rb8 {[%emt 0:02:04]} 30. Rc3 {[%emt 0:00:12]} Rb4 {[%emt 0:00:09]} 31. Kd3 {[%emt 0:01:36]} g5 {[%emt 0:02:21]} 32. g3 {[%emt 0:01:06]} f5 {[%emt 0:00:26]} 33. h3 {[%emt 0:04:30]} h5 {[%emt 0:05:11]} 34. R1c2 {[%emt 0:03:44]} h4 {[%emt 0:02:10]} 35. Rc1 {[%emt 0:01:44]} Rxb3 {[%emt 0:00:39]} 36. Rxb3 {[%emt 0:04:33]} c4+ {[%emt 0:00:01]} 37. Kd2 {[%emt 0:00:12]} cxb3 {[%emt 0:00:06]} 38. Rxc7 {[%emt 0:00:17]} Kxc7 {[%emt 0:00:04]} 39. gxh4 {[%emt 0:02:29]} gxh4 {[%emt 0:00:02]} 40. Kc3 {[%emt 0:00:23]} Kd6 {[%emt 0:00:04]} 41. f4 {[%emt 0:50:35]} Kc5 {[%emt 0:50:13]} 0-1

[Event "4NCL 2021-22"]
[Site "England"]
[Date "2022.03.27"]
[Round "6.77"]
[White "Dunn, Andrew"]
[Black "Pozimski, Szymon"]
[Result "1/2-1/2"]
[ECO "D20"]
[WhiteElo "2153"]
[BlackElo "2001"]
[Annotator "ChessBase"]
[PlyCount "46"]
[EventDate "2021.11.27"]
[EventType "team-tourn"]
[EventCountry "ENG"]
[SourceTitle "playchess.com"]
[Source "ChessBase"]
[SourceQuality "1"]
[TimeControl "40/6000+30:3000+30"]

1. d4 {[%emt 0:00:04]} d5 {[%emt 0:00:06]} 2. c4 {[%emt 0:00:10]} dxc4 {[%emt 0:00:06]} 3. e4 {[%emt 0:00:09]} e5 {[%emt 0:00:05]} 4. Nf3 {[%emt 0:00:08]} Bb4+ {[%emt 0:00:06]} 5. Nc3 {[%emt 0:01:19]} exd4 {[%emt 0:00:15]} 6. Nxd4 {[%emt 0:00:47]} Ne7 {[%emt 0:01:33]} 7. Bxc4 {[%emt 0:01:18]} Nbc6 {[%emt 0:01:15]} 8. Be3 {[%emt 0:01:41]} Nxd4 {[%emt 0:02:27]} 9. Qxd4 {[%emt 0:05:32]} Qxd4 {[%emt 0:01:44]} 10. Bxd4 {[%emt 0:01:42]} O-O {[%emt 0:01:23]} 11. O-O {[%emt 0:02:03]} Nc6 {[%emt 0:03:58]} 12. Be3 {[%emt 0:02:20]} Na5 {[%emt 0:30:05]} 13. Be2 {[%emt 0:02:49]} Bxc3 {[%emt 0:11:46]} 14. bxc3 {[%emt 0:00:08]} Be6 {[%emt 0:00:40]} 15. Bf4 {[%emt 0:06:58]} c5 {[%emt 0:03:32]} 16. Bd6 {[%emt 0:03:06]} Rfc8 {[%emt 0:01:15]} 17. Rfd1 {[%emt 0:02:56]} Nc4 {[%emt 0:06:03]} 18. Bxc4 {[%emt 0:06:33]} Bxc4 {[%emt 0:00:12]} 19. Rd2 {[%emt 0:15:59]} b5 {[%emt 0:18:24]} 20. Rad1 {[%emt 0:06:52]} h6 {[%emt 0:01:00]} 21. Be7 {[%emt 0:11:42]} Re8 {[%emt 0:08:38]} 22. Bxc5 {[%emt 0:01:34]} Rxe4 {[%emt 0:00:06]} 23. a3 {[%emt 0:10:43]} a5 {[%emt 0:05:55]} 1/2-1/2

[Event "4NCL 2021-22"]
[Site "England"]
[Date "2022.03.27"]
[Round "6.78"]
[White "Wilson, Edgar"]
[Black "Longson, Sarah N"]
[Result "0-1"]
[ECO "C29"]
[WhiteElo "1872"]
[BlackElo "2022"]
[Annotator "NA"]
[PlyCount "78"]
[EventDate "2021.11.27"]
[EventType "team-tourn"]
[EventCountry "ENG"]
[SourceTitle "playchess.com"]
[Source "ChessBase"]
[SourceQuality "1"]
[TimeControl "40/6000+30:3000+30"]

1. e4 {[%emt 0:00:09]} e5 {[%emt 0:00:03]} 2. Nc3 {[%emt 0:00:15]} Nf6 {[%emt 0:00:12]} 3. f4 {[%emt 0:00:19]} d5 {[%emt 0:00:12]} 4. fxe5 {[%emt 0:00:27]} Nxe4 {[%emt 0:00:20]} 5. Qf3 {[%emt 0:00:30]} Nc6 {[%emt 0:00:31]} 6. Bb5 {[%emt 0:00:50]} Nxc3 {[%emt 0:00:31]} 7. dxc3 {[%emt 0:00:48]} Qh4+ {[%emt 0:00:24]} 8. g3 {[%emt 0:00:47]} Qe4+ {[%emt 0:00:04]} 9. Qxe4 {[%emt 0:00:43]} dxe4 {[%emt 0:00:02]} 10. Bxc6+ {[%emt 0:01:26]} bxc6 {[%emt 0:00:04]} 11. Be3 {[%emt 0:01:36]} Rb8 {[%emt 0:01:58]} 12. O-O-O {[%emt 0:07:38]} Rb5 {[%emt 0:00:43]} 13. Bf4 {[%emt 0:13:22]} Rg8 {[%emt 0:00:43]} 14. h4 {[%emt 0:06:08]} h6 {[%emt 0:00:11]} 15. Nh3 {[%emt 0:10:21]} Bxh3 {[%emt 0:14:31]} 16. Rxh3 {[%emt 0:00:07]} g5 {[%emt 0:00:48]} 17. hxg5 {[%emt 0:01:03]} hxg5 {[%emt 0:00:05]} 18. Be3 {[%emt 0:02:06]} Rxe5 {[%emt 0:01:27]} 19. Bd4 {[%emt 0:06:30]} Re6 {[%emt 0:00:50]} 20. Rh7 {[%emt 0:08:58]} Bd6 {[%emt 0:22:47]} 21. Rf1 {[%emt 0:01:57]} e3 {[%emt 0:08:29]} 22. Re1 {[%emt 0:14:49]} Bxg3 {[%emt 0:00:57]} 23. Re2 {[%emt 0:01:11]} Bf2 {[%emt 0:05:14]} 24. Rxf2 {[%emt 0:11:15]} exf2 {[%emt 0:00:04]} 25. Bxf2 {[%emt 0:00:12]} g4 {[%emt 0:00:26]} 26. Bxa7 {[%emt 0:01:53]} g3 {[%emt 0:00:33]} 27. Rh1 {[%emt 0:00:46]} g2 {[%emt 0:00:49]} 28. Rg1 {[%emt 0:00:07]} f5 {[%emt 0:02:02]} 29. Bc5 {[%emt 0:01:38]} f4 {[%emt 0:00:31]} 30. a4 {[%emt 0:00:45]} f3 {[%emt 0:00:23]} 31. a5 {[%emt 0:00:42]} Re5 {[%emt 0:01:05]} 32. Bf2 {[%emt 0:02:13]} Rxa5 {[%emt 0:00:41]} 33. Kd2 {[%emt 0:00:16]} Re5 {[%emt 0:01:01]} 34. Bd4 {[%emt 0:01:11]} Re2+ {[%emt 0:00:48]} 35. Kd1 {[%emt 0:00:12]} Rg5 {[%emt 0:00:56]} 36. b4 {[%emt 0:00:36]} Rh5 {[%emt 0:00:35]} 37. c4 {[%emt 0:00:26]} Rh1 {[%emt 0:00:25]} 38. b5 {[%emt 0:00:16]} Rxg1+ {[%emt 0:00:35]} 39. Bxg1 {[%emt 0:00:08]} f2 {[%emt 0:00:13]} 0-1

[Event "4NCL 2021-22"]
[Site "England"]
[Date "2022.03.27"]
[Round "6.79"]
[White "Henderson, David"]
[Black "Arora, Tashika"]
[Result "1-0"]
[ECO "A16"]
[WhiteElo "2108"]
[BlackElo "1823"]
[Annotator "NA"]
[PlyCount "171"]
[EventDate "2021.11.27"]
[EventType "team-tourn"]
[EventCountry "ENG"]
[SourceTitle "playchess.com"]
[Source "ChessBase"]
[SourceQuality "1"]
[TimeControl "40/6000+30:3000+30"]

1. c4 {[%emt 0:00:02]} Nf6 {[%emt 0:00:13]} 2. g3 {[%emt 0:00:07]} d5 {[%emt 0:00:11]} 3. cxd5 {[%emt 0:00:09]} Nxd5 {[%emt 0:00:07]} 4. Bg2 {[%emt 0:00:22]} g6 {[%emt 0:00:29]} 5. Nc3 {[%emt 0:00:08]} Nxc3 {[%emt 0:00:26]} 6. bxc3 {[%emt 0:00:07]} Bg7 {[%emt 0:00:24]} 7. Rb1 {[%emt 0:00:46]} c6 {[%emt 0:00:26]} 8. Nf3 {[%emt 0:00:36]} O-O {[%emt 0:00:42]} 9. O-O {[%emt 0:00:18]} Nd7 {[%emt 0:02:31]} 10. c4 {[%emt 0:08:35]} Qa5 {[%emt 0:06:21]} 11. Qb3 {[%emt 0:01:43]} Rb8 {[%emt 0:07:07]} 12. Qa3 {[%emt 0:15:09]} Qxa3 {[%emt 0:01:40]} 13. Bxa3 {[%emt 0:00:07]} Re8 {[%emt 0:04:22]} 14. Rfc1 {[%emt 0:05:30]} c5 {[%emt 0:05:42]} 15. Bb2 {[%emt 0:07:56]} e5 {[%emt 0:02:57]} 16. d3 {[%emt 0:14:59]} f5 {[%emt 0:05:42]} 17. e3 {[%emt 0:16:15]} b6 {[%emt 0:03:13]} 18. e4 {[%emt 0:19:09]} Bb7 {[%emt 0:07:30]} 19. Re1 {[%emt 0:06:12]} fxe4 {[%emt 0:02:17]} 20. dxe4 {[%emt 0:00:05]} Rbd8 {[%emt 0:03:47]} 21. Rbd1 {[%emt 0:00:24]} Ba6 {[%emt 0:00:42]} 22. Bf1 {[%emt 0:00:10]} Bb7 {[%emt 0:06:40]} 23. Bh3 {[%emt 0:02:16]} Nf6 {[%emt 0:04:20]} 24. Rxd8 {[%emt 0:04:21]} Rxd8 {[%emt 0:01:47]} 25. Bxe5 {[%emt 0:03:07]} Nxe4 {[%emt 0:01:29]} 26. Bxg7 {[%emt 0:00:53]} Kxg7 {[%emt 0:00:06]} 27. Bg2 {[%emt 0:00:23]} Kf6 {[%emt 0:01:33]} 28. h4 {[%emt 0:01:04]} Nd2 {[%emt 0:06:01]} 29. Ng5 {[%emt 0:00:05]} Bxg2 {[%emt 0:01:01]} 30. Kxg2 {[%emt 0:00:04]} h6 {[%emt 0:00:38]} 31. Ne4+ {[%emt 0:03:06]} Nxe4 {[%emt 0:01:42]} 32. Rxe4 {[%emt 0:00:01]} Rd2 {[%emt 0:00:43]} 33. Rf4+ {[%emt 0:00:39]} Ke5 {[%emt 0:00:56]} 34. Rg4 {[%emt 0:00:07]} Kf5 {[%emt 0:00:51]} 35. Rf4+ {[%emt 0:00:04]} Ke6 {[%emt 0:00:31]} 36. Rg4 {[%emt 0:01:18]} Kf6 {[%emt 0:00:25]} 37. Rf4+ {[%emt 0:00:04]} Kg7 {[%emt 0:00:47]} 38. a3 {[%emt 0:00:05]} Rd3 {[%emt 0:00:55]} 39. Rf3 {[%emt 0:00:23]} Rd4 {[%emt 0:00:34]} 40. Rc3 {[%emt 0:00:07]} Rd2 {[%emt 0:01:45]} 41. Kf3 {[%emt 0:50:28]} Rd4 {[%emt 1:07:09]} 42. a4 {[%emt 0:00:00]} a5 {[%emt 0:00:00]} 43. Ke3 {[%emt 0:00:00]} Kf7 {[%emt 0:00:00]} 44. Rb3 {[%emt 0:00:00]} Rxc4 {[%emt 0:00:00]} 45. Rxb6 {[%emt 0:00:00]} Rxa4 {[%emt 0:00:00]} 46. h5 {[%emt 0:00:00]} gxh5 {[%emt 0:00:00]} 47. Rxh6 {[%emt 0:00:00]} Rb4 {[%emt 0:00:00]} 48. Rxh5 {[%emt 0:00:00]} a4 {[%emt 0:00:00]} 49. Rxc5 {[%emt 0:00:00]} Rb3+ {[%emt 0:00:00]} 50. Kf4 {[%emt 0:00:00]} a3 {[%emt 0:00:00]} 51. Ra5 {[%emt 0:00:00]} Rb2 {[%emt 0:00:00]} 52. f3 {[%emt 0:00:00]} Rb4+ {[%emt 0:00:00]} 53. Kf5 {[%emt 0:00:00]} Rb3 {[%emt 0:00:00]} 54. Ra7+ {[%emt 0:00:00]} Ke8 {[%emt 0:00:00]} 55. Kg4 {[%emt 0:00:00]} Kd8 {[%emt 0:00:00]} 56. f4 {[%emt 0:00:00]} Kc8 {[%emt 0:00:00]} 57. f5 {[%emt 0:00:00]} Kb8 {[%emt 0:00:00]} 58. Ra4 {[%emt 0:00:00]} Kc7 {[%emt 0:00:00]} 59. Kh4 {[%emt 0:00:00]} Rf3 {[%emt 0:00:00]} 60. g4 {[%emt 0:00:00]} Kd6 {[%emt 0:00:00]} 61. Kg5 {[%emt 0:00:00]} Rg3 {[%emt 0:00:00]} 62. Ra5 {[%emt 0:00:00]} Rf3 {[%emt 0:00:00]} 63. Kg6 {[%emt 0:00:00]} Ke7 {[%emt 0:00:00]} 64. g5 {[%emt 0:00:00]} Rg3 {[%emt 0:00:00]} 65. f6+ {[%emt 0:00:00]} Ke6 {[%emt 0:00:00]} 66. Ra6+ {[%emt 0:00:00]} Kd7 {[%emt 0:00:00]} 67. f7 {[%emt 0:00:00]} Rf3 {[%emt 0:00:00]} 68. Kg7 {[%emt 0:00:00]} Ke7 {[%emt 0:00:00]} 69. Ra7+ {[%emt 0:00:00]} Ke6 {[%emt 0:00:00]} 70. f8=Q {[%emt 0:00:00]} Rxf8 {[%emt 0:00:00]} 71. Kxf8 {[%emt 0:00:00]} Kf5 {[%emt 0:00:00]} 72. Rxa3 {[%emt 0:00:00]} Kxg5 {[%emt 0:00:00]} 73. Rf3 {[%emt 0:00:00]} Kg4 {[%emt 0:00:00]} 74. Rf6 {[%emt 0:00:00]} Kg5 {[%emt 0:00:00]} 75. Ke7 {[%emt 0:00:00]} Kg4 {[%emt 0:00:00]} 76. Ke6 {[%emt 0:00:00]} Kg5 {[%emt 0:00:00]} 77. Ke5 {[%emt 0:00:00]} Kg4 {[%emt 0:00:00]} 78. Rf5 {[%emt 0:00:00]} Kg3 {[%emt 0:00:00]} 79. Rf4 {[%emt 0:00:00]} Kg2 {[%emt 0:00:00]} 80. Ke4 {[%emt 0:00:00]} Kg3 {[%emt 0:00:00]} 81. Ke3 {[%emt 0:00:00]} Kg2 {[%emt 0:00:00]} 82. Rf3 {[%emt 0:00:00]} Kg1 {[%emt 0:00:00]} 83. Rg3+ {[%emt 0:00:00]} Kh1 {[%emt 0:00:00]} 84. Kf3 {[%emt 0:00:00]} Kh2 {[%emt 0:00:00]} 85. Kf2 {[%emt 0:00:00]} Kh1 {[%emt 0:00:00]} 86. Rh3# {[%emt 0:00:00]} 1-0